[Event "12th Tamil Nadu Circuit-IM 2024"]
[Site "Chennai"]
[Date "2024.01.11"]
[Round "4.5"]
[White "Mohamed Anees M"]
[Black "Pradeep Kumar R A"]
[Result "1-0"]
[ECO "A65"]
[WhiteElo "2319"]
[BlackElo "2189"]
[Annotator "RC"]
[PlyCount "155"]
[EventDate "2024.01.09"]
[EventType "tourn"]
[EventCountry "IND"]
[SourceTitle "playchess.com"]
[Source "ChessBase"]
[SourceQuality "1"]
[TimeControl "5400+30"]

1. d4 {[%emt 0:54:39]} Nf6 {[%emt 0:00:12]} 2. c4 {[%emt 0:00:05]} g6 {[%emt 0:00:12]} 3. Nc3 {[%emt 0:00:05]} Bg7 {[%emt 0:00:06]} 4. e4 {[%emt 0:00:05]} d6 {[%emt 0:00:06]} 5. h3 {[%emt 0:00:05]} O-O {[%emt 0:00:08]} 6. Bg5 {[%emt 0:00:09]} c5 {[%emt 0:02:37]} 7. d5 {[%emt 0:00:21]} e6 {[%emt 0:02:50]} 8. Bd3 {[%emt 0:00:29]} exd5 {[%emt 0:03:53]} 9. cxd5 {[%emt 0:00:16]} Re8 {[%emt 0:02:41]} 10. Nf3 {[%emt 0:00:41]} c4 {[%emt 0:04:00]} 11. Bc2 {[%emt 0:00:08]} Qb6 {[%emt 0:08:19]} 12. Rb1 {[%emt 0:19:07]} Na6 {[%emt 0:08:02]} 13. O-O {[%emt 0:02:46]} Bd7 {[%emt 0:03:01]} 14. Nd2 {[%emt 0:04:30]} Rac8 {[%emt 0:03:10]} 15. Qf3 {[%emt 0:17:32]} Qd4 {[%emt 0:25:07]} 16. Be3 {[%emt 0:06:35]} Qe5 {[%emt 0:00:05]} 17. Bxa7 {[%emt 0:10:03]} b5 {[%emt 0:01:40]} 18. a3 {[%emt 0:02:20]} Nc5 {[%emt 0:02:51]} 19. Qe3 {[%emt 0:04:36]} Nh5 {[%emt 0:05:11]} 20. a4 {[%emt 0:09:00]} bxa4 {[%emt 0:16:50]} 21. Nxc4 {[%emt 0:01:23]} Qe7 {[%emt 0:00:58]} 22. Nb6 {[%emt 0:05:07]} Rc7 {[%emt 0:01:34]} 23. Nxd7 {[%emt 0:00:19]} Nxd7 {[%emt 0:05:41]} 24. Bxa4 {[%emt 0:06:56]} Ra8 {[%emt 0:01:55]} 25. Bxd7 {[%emt 0:00:13]} Rcxa7 {[%emt 0:00:51]} 26. Bc6 {[%emt 0:00:25]} Rb8 {[%emt 0:00:01]} 27. b3 {[%emt 0:05:58]} Ra5 {[%emt 0:00:59]} 28. Rfe1 {[%emt 0:00:50]} Rb4 {[%emt 0:00:47]} 29. Na4 {[%emt 0:00:26]} Rb8 {[%emt 0:00:31]} 30. b4 {[%emt 0:00:22]} Ra7 {[%emt 0:00:06]} 31. Nb6 {[%emt 0:00:37]} Be5 {[%emt 0:00:35]} 32. Nc4 {[%emt 0:00:39]} Ra2 {[%emt 0:00:53]} 33. Qb3 {[%emt 0:01:27]} Qa7 {[%emt 0:00:12]} 34. Qf3 {[%emt 0:01:55]} Bd4 {[%emt 0:00:34]} 35. Ne3 {[%emt 0:01:08]} Nf6 36. b5 {[%emt 0:00:26]} Nd7 {[%emt 0:00:04]} 37. Bxd7 {[%emt 0:00:51]} Qxd7 {[%emt 0:00:02]} 38. Re2 {[%emt 0:00:39]} Rxb5 {[%emt 0:00:39]} 39. Rxb5 {[%emt 0:00:18]} Ra1+ {[%emt 0:00:20]} 40. Kh2 {[%emt 0:00:44]} Qxb5 {[%emt 0:00:05]} 41. Rd2 {[%emt 0:00:23]} Be5+ {[%emt 0:00:16]} 42. g3 {[%emt 0:00:03]} h5 {[%emt 0:00:23]} 43. h4 {[%emt 0:00:11]} Qb4 {[%emt 0:00:33]} 44. Rc2 {[%emt 0:01:00]} Qe1 {[%emt 0:01:19]} 45. Rc7 {[%emt 0:01:07]} f6 {[%emt 0:01:25]} 46. Rc8+ {[%emt 0:00:42]} Kg7 {[%emt 0:00:07]} 47. Rc7+ {[%emt 0:00:05]} Kg8 {[%emt 0:00:01]} 48. Qg2 {[%emt 0:01:15]} Ra2 {[%emt 0:01:15]} 49. Rc2 {[%emt 0:00:12]} Rxc2 {[%emt 0:00:40]} 50. Nxc2 Qd2 {[%emt 0:00:18]} 51. f4 {[%emt 0:00:42]} Bc3 {[%emt 0:00:32]} 52. Qxd2 {[%emt 0:00:07]} Bxd2 {[%emt 0:00:11]} 53. Kg2 {[%emt 0:00:04]} g5 {[%emt 0:00:44]} 54. hxg5 {[%emt 0:00:50]} fxg5 {[%emt 0:00:01]} 55. Kf3 {[%emt 0:01:31]} h4 {[%emt 0:01:07]} 56. gxh4 {[%emt 0:00:06]} gxh4 {[%emt 0:00:33]} 57. Nd4 {[%emt 0:00:13]} h3 {[%emt 0:00:15]} 58. Ne6 {[%emt 0:00:11]} Be1 {[%emt 0:00:25]} 59. Ng5 {[%emt 0:01:09]} h2 {[%emt 0:00:06]} 60. Kg2 {[%emt 0:00:02]} Bg3 {[%emt 0:00:16]} 61. f5 {[%emt 0:00:03]} Kg7 {[%emt 0:01:01]} 62. Nf3 {[%emt 0:00:05]} Kf6 {[%emt 0:00:53]} 63. Nxh2 {[%emt 0:00:04]} Bf4 {[%emt 0:00:03]} 64. Nf3 {[%emt 0:00:27]} Bc1 {[%emt 0:00:10]} 65. Kf2 {[%emt 0:00:49]} Ba3 {[%emt 0:00:06]} 66. Ke3 {[%emt 0:00:06]} Bb2 {[%emt 0:00:35]} 67. Kd3 {[%emt 0:00:09]} Bc1 {[%emt 0:01:27]} 68. Nd2 {[%emt 0:00:45]} Kg5 {[%emt 0:00:43]} 69. Nc4 {[%emt 0:00:19]} Bf4 {[%emt 0:00:02]} 70. Kc3 {[%emt 0:00:31]} Kf6 {[%emt 0:00:42]} 71. Kb4 {[%emt 0:00:05]} Ke7 {[%emt 0:00:11]} 72. Kb5 {[%emt 0:00:03]} Kd7 {[%emt 0:01:06]} 73. Kb6 {[%emt 0:00:09]} Bg5 {[%emt 0:00:06]} 74. Kb7 {[%emt 0:00:13]} Bf4 {[%emt 0:00:34]} 75. Nb6+ {[%emt 0:00:21]} Kd8 {[%emt 0:00:47]} 76. Kc6 {[%emt 0:00:05]} Bg3 {[%emt 0:00:27]} 77. Nc4 {[%emt 0:00:05]} Ke7 {[%emt 0:00:04]} 78. Nxd6 {[%emt 0:00:09]} 1-0

[Event "12th Tamil Nadu Circuit-IM 2024"]
[Site "Chennai"]
[Date "2024.01.11"]
[Round "5.1"]
[White "Pradeep Kumar R A"]
[Black "Md Imran"]
[Result "0-1"]
[ECO "A14"]
[WhiteElo "2189"]
[BlackElo "2222"]
[Annotator "TA"]
[PlyCount "86"]
[EventDate "2024.01.09"]
[EventType "tourn"]
[EventCountry "IND"]
[SourceTitle "playchess.com"]
[Source "ChessBase"]
[SourceQuality "1"]
[TimeControl "5400+30"]

{[%evp 17,85,-4,0,0,0,0,0,0,1,3,41,42,66,69,63,54,70,43,68,20,67,-4,-5,-35,0,0,164,-50,-50,-108,-122,-114,-105,-109,-108,-108,-105,-120,-120,-158,-147,-172,-175,-283,-276,-283,-279,-285,-278,-478,-279,-485,-160,-193,-141,-181,-171,-199,-208,-506,-506,-506,-477,-457,-404,-29997,-29998,-29998,-29999,-29999]} 1. Nf3 {[%emt 0:00:13]} b6 {[%emt 0:00:55]} 2. g3 {[%emt 0:01:33]} Bb7 {[%emt 0:00:03]} 3. Bg2 {[%emt 0:00:05]} Nf6 {[%emt 0:00:23]} 4. O-O {[%emt 0:00:18]} e6 {[%emt 0:00:05]} 5. c4 {[%emt 0:00:16]} c5 {[%emt 0:01:36]} 6. Nc3 {[%emt 0:00:10]} Be7 {[%emt 0:00:23]} 7. b3 {[%emt 0:02:39]} O-O {[%emt 0:00:12]} 8. Bb2 {[%emt 0:00:02]} d5 {[%emt 0:01:49]} 9. cxd5 {[%emt 0:00:44]} Nxd5 {[%emt 0:00:15]} 10. Re1 {[%emt 0:03:00]} Bf6 {[%emt 0:02:21]} 11. e4 {[%emt 0:11:27]} Nb4 {[%emt 0:06:29]} 12. e5 {[%emt 0:00:15] The position is equal.} Be7 {[%emt 0:01:12]} 13. d4 {[%emt 0:00:29]} N8c6 {[%emt 0:06:14][%cal Rc5d4]} 14. a3 {[%emt 0:11:08]} cxd4 {[%emt 0:00:16]} 15. Ne4 {[%emt 0:00:15]} Nd5 {[%emt 0:00:25]} 16. Nxd4 {[%emt 0:00:38]} Qd7 {[%emt 0:06:21]} 17. Nf3 {[%emt 0:07:19]} Rfd8 {[%emt 0:01:32]} 18. h4 {[%emt 0:06:42]} (18. Nfd2 $14) 18... Rac8 {[%emt 0:03:43]} (18... Qc7 $11) 19. Bh3 {[%emt 0:08:40]} (19. Nfd2 $14) 19... Nc7 $11 {[%emt 0:02:29]} 20. Nfd2 {[%emt 0:06:43]} Nd4 {[%emt 0:06:28]} 21. Bg2 {[%emt 0:01:09][%cal Oe4f6]} Na6 $2 {[%emt 0:11:12]} (21... Ncb5 $11 22. Nc4 Bd5) 22. Nc4 $2 {[%emt 0:03:01]} ({Only move:} 22. Bxd4 $1 $18 {Be3 would now be deadly.} Qxd4 23. Nd6 Bxd6 24. Bxb7) 22... Bxe4 $1 $15 {[%emt 0:03:22]} 23. Rxe4 {[%emt 0:01:52] [#] White is now going downhill.} (23. Bxe4 $15 Nc5 24. Nd6 Bxd6 25. Qxd4) 23... Nxb3 $1 $17 {[%emt 0:01:19][%mdl 512] Black is more active.} 24. Qxb3 {[%emt 0:00:41] Rd4 is the strong threat.} Nc5 $1 {[%emt 0:00:02][%csl LRb3,LRe4]} 25. Qe3 {[%emt 0:13:57]} Nxe4 {[%emt 0:00:07]} 26. Qxe4 {[%emt 0:00:19] [#]} Qb5 $1 {[%emt 0:00:12]} 27. Rc1 {[%emt 0:04:24][%cal Oe4b7] [#]} Rxc4 $1 {[%emt 0:00:07][%mdl 512]} 28. Qxc4 {[%emt 0:04:00]} (28. Rxc4 Qxb2) 28... Qxb2 {[%emt 0:00:12]} 29. Qc7 {[%emt 0:00:04]} Rf8 {[%emt 0:13:45]} ({Weaker is} 29... Bxa3 30. Qxd8+ Bf8 31. Rc8 Qa3 32. Qd6) 30. Rc3 {[%emt 0:03:48]} (30. Qc3 $142 Bxa3 31. Qxb2 Bxb2 32. Rc7) 30... Bxa3 $19 {[%emt 0:01:13]} 31. Bf1 {[%emt 0:02:48]} Bc5 {[%emt 0:01:49]} 32. Rf3 {[%emt 0:00:04]} a5 {[%emt 0:00:18]} 33. Kg2 $2 {[%emt 0:02:49]} (33. Qd7 {might work better.}) 33... Qd4 {[%emt 0:00:44]} (33... a4 $142 34. Qa7 a3 (34... Qxe5 $2 35. Qxa4 Qd5 36. Bb5 $19)) 34. Bb5 $2 {[%emt 0:01:30]} (34. Qc6) 34... Qd8 $2 {[%emt 0:00:23]} (34... a4 $19 35. Rf4 Qd5+ 36. Kh2 a3) 35. Qb7 {[%emt 0:00:31]} Qe7 {[%emt 0:00:36]} ({Black should play} 35... h5 $19 36. Ba4 Qb8 37. Rxf7 Qxb7+ (37... Qxe5 38. Rxf8+ Kxf8 39. Qa8+ Ke7 40. Bc6 $17) 38. Rxb7 Rxf2+ 39. Kh3 Kh7) 36. Qe4 {[%emt 0:00:28]} Rd8 {[%emt 0:01:30]} 37. h5 {[%emt 0:01:26]} Qg5 {[%emt 0:00:38]} 38. g4 $2 {[%emt 0:02:18]} (38. Rd3) 38... Rd4 {[%emt 0:00:59]} 39. Qa8+ {[%emt 0:00:07]} Bf8 {[%emt 0:00:47]} 40. Be8 {[%emt 0:01:55]} Rxg4+ {[%emt 0:00:13]} 41. Kf1 {[%emt 0:00:04]} (41. Rg3 $19 Rxg3+ (41... Qxh5 $2 42. Bxf7+ Kxf7 43. Qf3+ Qf5 44. Rxg4 $19) 42. fxg3 Qxh5 (42... Qxe5 $2 43. Qf3 $19) 43. Qe4) 41... Qc1+ {[%emt 0:00:35] Black mates.} 42. Ke2 {[%emt 0:00:06]} Qc2+ {[%emt 0:00:11]} 43. Ke3 {[%emt 0:00:06]} Bc5# {[%emt 0:00:10] Weighted Error Value: White=0.68/Black=0.31.  Loses game:     	---       	Black=1      Missed win:     	White=1     	Black=1      Mistake:       	White=8     	Black=3      Inaccurate:     	White=3     	Black=2      OK:         	White=8     	Black=9      Best:        	White=3     	Black=5      Strong:       	---       	Black=2      Brilliant:      	---       	Black=2} 0-1

[Event "12th Tamil Nadu Circuit-IM 2024"]
[Site "Chennai"]
[Date "2024.01.11"]
[Round "5.2"]
[White "Buscara, Sevan"]
[Black "Mohamed Anees M"]
[Result "1-0"]
[ECO "B47"]
[WhiteElo "2359"]
[BlackElo "2319"]
[Annotator "RC"]
[PlyCount "59"]
[EventDate "2024.01.09"]
[EventType "tourn"]
[EventCountry "IND"]
[SourceTitle "playchess.com"]
[Source "ChessBase"]
[SourceQuality "1"]
[TimeControl "5400+30"]

1. e4 {[%emt 0:01:14]} c5 {[%emt 0:00:10]} 2. Nf3 {[%emt 0:00:04]} e6 {[%emt 0:00:07]} 3. d4 {[%emt 0:00:24]} cxd4 {[%emt 0:00:05]} 4. Nxd4 {[%emt 0:00:03]} Nc6 {[%emt 0:01:44]} 5. Nc3 {[%emt 0:00:06]} Qc7 {[%emt 0:00:04]} 6. g3 {[%emt 0:00:50]} a6 {[%emt 0:00:05]} 7. Bg2 {[%emt 0:00:09]} h5 {[%emt 0:00:25]} 8. Nb3 {[%emt 0:09:26]} h4 {[%emt 0:03:37]} 9. f4 {[%emt 0:04:46]} d6 {[%emt 0:03:45]} 10. Be3 {[%emt 0:01:29]} Nf6 {[%emt 0:12:01]} 11. Qe2 {[%emt 0:05:27]} b5 {[%emt 0:04:06]} 12. O-O-O {[%emt 0:02:49]} Bb7 {[%emt 0:01:18]} 13. g4 {[%emt 0:05:11]} Nd7 {[%emt 0:05:39]} 14. g5 {[%emt 0:04:33]} Nb6 {[%emt 0:07:19]} 15. g6 {[%emt 0:01:41]} Nc4 {[%emt 0:01:57]} 16. gxf7+ {[%emt 0:00:44]} Qxf7 {[%emt 0:00:22]} 17. Bh3 {[%emt 0:02:50]} g6 {[%emt 0:12:09]} 18. Kb1 {[%emt 0:03:01]} Bg7 {[%emt 0:03:21]} 19. e5 {[%emt 0:02:04]} Ne7 {[%emt 0:14:07]} 20. exd6 {[%emt 0:02:47]} Nf5 {[%emt 0:02:12]} 21. d7+ {[%emt 0:00:29]} Kd8 {[%emt 0:00:06]} 22. Bxf5 {[%emt 0:06:30]} gxf5 {[%emt 0:00:45]} 23. Rhg1 {[%emt 0:05:58]} Bxc3 {[%emt 0:02:40]} 24. bxc3 {[%emt 0:01:37]} Bd5 {[%emt 0:00:15]} 25. Nc5 {[%emt 0:01:47]} Kc7 {[%emt 0:01:05]} 26. Rxd5 {[%emt 0:08:18]} exd5 {[%emt 0:00:33]} 27. Rg7 {[%emt 0:00:07]} Qh5 {[%emt 0:09:03]} 28. Ne6+ {[%emt 0:03:38]} Kc6 {[%emt 0:00:05]} 29. d8=N+ {[%emt 0:00:31]} Raxd8 {[%emt 0:00:06]} 30. Rc7+ {[%emt 0:00:25]} 1-0

[Event "12th Tamil Nadu Circuit-IM 2024"]
[Site "Chennai"]
[Date "2024.01.11"]
[Round "5.3"]
[White "Touzane, Olivier"]
[Black "Prasannaa.s"]
[Result "0-1"]
[ECO "E73"]
[WhiteElo "2242"]
[BlackElo "2213"]
[Annotator "TA"]
[PlyCount "58"]
[EventDate "2024.01.09"]
[EventType "tourn"]
[EventCountry "IND"]
[SourceTitle "playchess.com"]
[Source "ChessBase"]
[SourceQuality "1"]
[TimeControl "5400+30"]

{[%evp 18,58,-29,-21,-17,-46,-28,-58,-58,-43,-70,-76,-57,-220,-239,-322,-295,-305,-318,-518,-487,-664,-666,-607,-444,-465,-455,-443,-357,-686,-688,-679,-683,-1376,-1364,-1376,-1118,-29994,-29995,-29995,-460,-29996,-29997]} 1. d4 {[%emt 0:01:57]} Nf6 {[%emt 0:00:14]} 2. c4 {[%emt 0:00:14]} g6 {[%emt 0:00:07]} 3. Nc3 {[%emt 0:00:19]} Bg7 {[%emt 0:00:04]} 4. e4 {[%emt 0:00:13]} d6 {[%emt 0:00:04]} 5. Be2 {[%emt 0:00:09]} O-O {[%emt 0:00:44]} 6. g4 {[%emt 0:00:12][%cal Bg2g4,Bg4g5][%mdl 32]} c5 {[%emt 0:03:37]} 7. d5 {[%emt 0:00:15]} e6 {[%emt 0:05:49]} 8. g5 {[%emt 0:07:35]} Ne8 {[%emt 0:00:12]} 9. h4 {[%emt 0:00:54][%cal Bh2h4,Bh4h5,Bh5h6][%mdl 32]} exd5 {[%emt 0:00:15]} 10. cxd5 {[%emt 0:00:15]} f5 {[%emt 0:13:48]} 11. gxf6 {[%emt 0:06:32]} Nxf6 {[%emt 0:01:22]} 12. h5 {[%emt 0:03:42] hxg6 is the strong threat.} Qe8 {[%emt 0:00:54] Black is slightly better.} 13. h6 {[%emt 0:05:23]} Bh8 {[%emt 0:00:25]} 14. Rh4 {[%emt 0:01:35] [#]} Na6 $1 {[%emt 0:07:04]} 15. Nf3 $2 {[%emt 0:05:40]} (15. Be3 $15) 15... Ng4 $19 {[%emt 0:01:39]} 16. Qb3 {[%emt 0:18:00] [#]} c4 $1 {[%emt 0:16:39][%mdl 512]} 17. Qxc4 {[%emt 0:13:15][%cal Oe4e5]} Bd7 {[%emt 0:00:24] White must now prevent ...Rc8.} 18. Nb5 $2 {[%emt 0:09:09] [#]} (18. e5 Rc8 (18... Nxe5 $2 19. Nxe5 Bxe5 20. Ne4 $17) 19. Rxg4 Rxc4 20. Rxc4) 18... Rxf3 $1 {[%emt 0:22:52][%mdl 512]} 19. Rxg4 {[%emt 0:14:35]} (19. Nxd6 Qf8) 19... Bxg4 {[%emt 0:02:10]} 20. Nxd6 {[%emt 0:01:09]} Qd7 {[%emt 0:01:10]} 21. Bxf3 {[%emt 0:00:42]} Bxf3 {[%emt 0:00:06]} 22. Bf4 {[%emt 0:00:11]} b5 {[%emt 0:06:50]} ({Not} 22... Bxb2 23. Rb1 Rf8 24. Rxb2 Rxf4 25. Qc3 $19) 23. Qd3 {[%emt 0:03:31]} (23. Qxb5 Qxb5 24. Nxb5 Bxe4 25. Nc3 Bxc3+ 26. bxc3) 23... Qg4 {[%emt 0:03:26][%cal Oa6b4] Threatens to win with ...Nb4!} 24. Bg3 {[%emt 0:00:36]} Nc5 {[%emt 0:00:27]} 25. Qxb5 {[%emt 0:00:26]} Nxe4 {[%emt 0:01:49]} 26. Qb7 {[%emt 0:03:09]} Rf8 {[%emt 0:00:23]} 27. Nxe4 {[%emt 0:01:16]} Qxe4+ {[%emt 0:00:37]} 28. Kf1 {[%emt 0:00:06]} Bg2+ {[%emt 0:01:39]} 29. Kg1 {[%emt 0:00:08]} Bh3 {[%emt 0:00:11] White got outplayed after the opening.   Weighted Error Value: White=1.39/Black=0.36.  Loses game:     	White=1     	---        Mistake:       	White=2     	---        Inaccurate:     	White=4     	---        OK:         	White=5     	Black=5      Best:        	White=1     	Black=1      Strong:       	---       	Black=1      Brilliant:      	---       	Black=1} 0-1

[Event "12th Tamil Nadu Circuit-IM 2024"]
[Site "Chennai"]
[Date "2024.01.11"]
[Round "5.4"]
[White "Tologon tegin, Semetei"]
[Black "Mamombe, Kudzanai"]
[Result "1-0"]
[ECO "E61"]
[WhiteElo "2384"]
[BlackElo "1797"]
[Annotator "RC"]
[PlyCount "81"]
[EventDate "2024.01.09"]
[EventType "tourn"]
[EventCountry "IND"]
[SourceTitle "playchess.com"]
[Source "ChessBase"]
[SourceQuality "1"]
[TimeControl "5400+30"]

1. Nf3 {[%emt 0:01:28]} Nf6 {[%emt 0:00:02]} 2. e3 {[%emt 0:00:04]} g6 {[%emt 0:00:19]} 3. d4 {[%emt 0:00:15]} Bg7 {[%emt 0:00:07]} 4. c4 {[%emt 0:00:03]} O-O {[%emt 0:00:13]} 5. Nc3 {[%emt 0:00:02]} d6 {[%emt 0:00:03]} 6. Be2 {[%emt 0:00:04]} Nbd7 {[%emt 0:00:21]} 7. O-O {[%emt 0:00:06]} e5 {[%emt 0:00:05]} 8. Qc2 {[%emt 0:00:02]} c6 {[%emt 0:01:44]} 9. Rd1 {[%emt 0:00:28]} Qe7 {[%emt 0:00:24]} 10. b4 {[%emt 0:00:20]} e4 {[%emt 0:03:42]} 11. Nd2 {[%emt 0:00:05]} d5 {[%emt 0:00:05]} 12. b5 {[%emt 0:05:08]} Re8 {[%emt 0:02:17]} 13. bxc6 {[%emt 0:11:34]} bxc6 {[%emt 0:00:11]} 14. cxd5 {[%emt 0:00:07]} cxd5 {[%emt 0:01:19]} 15. Nb5 {[%emt 0:01:16]} Rd8 {[%emt 0:00:31]} 16. Ba3 {[%emt 0:00:25]} Nc5 {[%emt 0:08:44]} 17. Bxc5 {[%emt 0:00:53]} Qd7 {[%emt 0:00:23]} 18. Nd6 {[%emt 0:00:14]} h5 {[%emt 0:01:35]} 19. Rab1 {[%emt 0:00:29]} a5 {[%emt 0:00:18]} 20. Rdc1 {[%emt 0:00:26]} Bf8 {[%emt 0:01:00]} 21. Nxc8 {[%emt 0:00:11]} Rdxc8 {[%emt 0:00:18]} 22. Qb2 {[%emt 0:00:13]} Bxc5 {[%emt 0:04:44]} 23. Rxc5 {[%emt 0:00:11]} Rcb8 {[%emt 0:00:11]} 24. Rb5 {[%emt 0:00:07]} Rc8 {[%emt 0:01:01]} 25. Rc1 {[%emt 0:00:51]} Rxc1+ {[%emt 0:00:44]} 26. Qxc1 {[%emt 0:00:23]} Kg7 {[%emt 0:00:48]} 27. Nb3 {[%emt 0:00:16]} Qf5 {[%emt 0:00:54]} 28. Rxa5 {[%emt 0:00:29]} Rd8 {[%emt 0:00:45]} 29. Ra7 {[%emt 0:00:32]} Ng4 {[%emt 0:00:52]} 30. Bxg4 {[%emt 0:00:16]} hxg4 {[%emt 0:00:07]} 31. Qc7 {[%emt 0:00:26]} Qf6 {[%emt 0:01:34]} 32. Qe5 {[%emt 0:00:15]} Qxe5 {[%emt 0:01:25]} 33. dxe5 {[%emt 0:00:06]} Re8 {[%emt 0:00:03]} 34. g3 {[%emt 0:00:21]} Rxe5 {[%emt 0:00:05]} 35. a4 {[%emt 0:00:12]} Kf6 {[%emt 0:00:28]} 36. Nd4 {[%emt 0:00:05]} Re8 {[%emt 0:00:37]} 37. a5 {[%emt 0:00:04]} Rb8 {[%emt 0:00:23]} 38. Rd7 {[%emt 0:00:18]} Rb1+ {[%emt 0:00:34]} 39. Kg2 {[%emt 0:00:05]} Ke5 {[%emt 0:00:34]} 40. Rxf7 {[%emt 0:00:06]} Ra1 {[%emt 0:00:08]} 41. Re7+ {[%emt 0:00:10]} 1-0

[Event "12th Tamil Nadu Circuit-IM 2024"]
[Site "Chennai"]
[Date "2024.01.11"]
[Round "5.5"]
[White "Gochelashvili, David"]
[Black "Raghav V"]
[Result "1-0"]
[ECO "C54"]
[WhiteElo "2287"]
[BlackElo "2150"]
[Annotator "RC"]
[PlyCount "79"]
[EventDate "2024.01.09"]
[EventType "tourn"]
[EventCountry "IND"]
[SourceTitle "playchess.com"]
[Source "ChessBase"]
[SourceQuality "1"]
[TimeControl "5400+30"]

1. e4 {[%emt 0:45:08]} e5 {[%emt 0:00:12]} 2. Nf3 {[%emt 0:00:35]} Nc6 {[%emt 0:00:06]} 3. Bc4 {[%emt 0:00:09]} Bc5 {[%emt 0:00:07]} 4. c3 {[%emt 0:00:15]} Nf6 {[%emt 0:00:08]} 5. d3 {[%emt 0:00:10]} O-O {[%emt 0:00:07]} 6. Bg5 {[%emt 0:00:14]} h6 {[%emt 0:02:21]} 7. Bh4 {[%emt 0:00:07]} d6 {[%emt 0:06:48]} 8. b4 {[%emt 0:03:05]} Bb6 {[%emt 0:00:19]} 9. Nbd2 {[%emt 0:00:18]} g5 {[%emt 0:05:19]} 10. Bg3 {[%emt 0:00:48]} Ne7 {[%emt 0:01:58]} 11. Bb3 {[%emt 0:08:34]} c6 {[%emt 0:08:31]} 12. Nc4 Bc7 {[%emt 0:00:03]} 13. h4 {[%emt 0:08:52]} g4 {[%emt 0:02:10]} 14. Nh2 {[%emt 0:00:05]} Ng6 {[%emt 0:11:55]} 15. h5 {[%emt 0:05:58]} Nxh5 {[%emt 0:17:05]} 16. Nxg4 {[%emt 0:00:27]} Nxg3 {[%emt 0:00:16]} 17. fxg3 {[%emt 0:00:32]} Qg5 {[%emt 0:17:04]} 18. Nxh6+ {[%emt 0:01:51]} Kg7 {[%emt 0:00:10]} 19. Qf3 {[%emt 0:00:21]} f5 {[%emt 0:02:34]} 20. Nxf5+ {[%emt 0:25:33]} Bxf5 {[%emt 0:01:04]} 21. Rh5 {[%emt 0:00:02]} Bxe4 {[%emt 0:02:57]} 22. dxe4 {[%emt 0:00:10]} Rxf3 {[%emt 0:06:05]} 23. Rxg5 {[%emt 0:00:07]} Rf6 {[%emt 0:02:49]} 24. Ne3 {[%emt 0:01:54]} Rh8 {[%emt 0:05:29]} 25. Ke2 {[%emt 0:02:51]} Rh2 {[%emt 0:04:29]} 26. a4 {[%emt 0:12:26]} Bd8 {[%emt 0:06:27]} 27. Rd1 {[%emt 0:05:06]} Kh7 {[%emt 0:01:33]} 28. Rf5 {[%emt 0:00:30]} d5 {[%emt 0:00:38]} 29. Rxf6 {[%emt 0:02:07]} Bxf6 {[%emt 0:00:01]} 30. exd5 {[%emt 0:00:05]} cxd5 {[%emt 0:00:33]} 31. Bxd5 {[%emt 0:00:07]} Ne7 {[%emt 0:00:25]} 32. Ng4 {[%emt 0:01:02]} Rh6 33. Be4+ {[%emt 0:00:32]} Kg7 {[%emt 0:00:08]} 34. Nxh6 {[%emt 0:00:22]} Kxh6 {[%emt 0:00:04]} 35. Rd7 {[%emt 0:00:08]} Nc8 {[%emt 0:00:09]} 36. Rxb7 {[%emt 0:02:48]} Nd6 {[%emt 0:00:04]} 37. Rh7+ {[%emt 0:00:04]} Kg5 {[%emt 0:00:03]} 38. Kd3 {[%emt 0:00:35]} Kg4 {[%emt 0:00:14]} 39. Rxa7 {[%emt 0:01:08]} Kxg3 {[%emt 0:00:06]} 40. Rd7 {[%emt 0:00:30]} 1-0